bitfinex-derivatives/quotes_BTCF0:USTF0_20250718
["timestamp","ask_amount","ask_price","bid_price","bid_amount"]
[1752805280242,0.29318446,120030.0,120020.0,1.63828177]
[1752805280443,0.12670046,120030.0,120020.0,1.63828177]
[1752805282241,0.36909427,120060.0,120050.0,0.1664562]
[1752805282447,0.61876487,120060.0,120050.0,0.77562632]
[1752805282648,0.98270127,120060.0,120050.0,0.45083622]
[1752805282847,0.98270127,120060.0,120050.0,0.49574625]
[1752805283346,0.98270127,120060.0,120050.0,0.49674625]
[1752805283546,0.98770127,120060.0,120050.0,0.49674625]
[1752805283747,0.98770127,120060.0,120050.0,0.46680623]
[1752805284547,0.98770127,120060.0,120050.0,0.96680623]
[1752805287350,0.01329427,120060.0,120050.0,1.29159633]
[1752805287546,0.77965667,120060.0,120050.0,1.29159633]
[1752805287845,0.78565667,120060.0,120050.0,1.65339633]
[1752805288049,0.78565667,120060.0,120050.0,0.96780623]
[1752805288245,0.78565667,120060.0,120050.0,1.65339633]
[1752805289054,0.78565667,120060.0,120050.0,1.29259633]
[1752805289549,0.18573667,120060.0,120050.0,0.96780623]
[1752805289845,0.18573667,120060.0,120050.0,0.99770869]
[1752805293153,0.18573667,120060.0,120050.0,0.96780623]
[1752805296153,0.011,120060.0,120050.0,1.65339633]
[1752805296355,0.61048,120060.0,120050.0,1.65339633]
[1752805296855,0.61048,120060.0,120050.0,1.6084863]
[1752805298054,0.011,120060.0,120050.0,1.66824866]
[1752805298353,0.1774424,120060.0,120050.0,1.66824866]
[1752805298550,0.1774424,120060.0,120050.0,1.6084863]
[1752805299448,0.1774424,120060.0,120050.0,1.65336071]
[1752805299955,0.1774424,120060.0,120050.0,1.29256098]
[1752805300853,0.011,120060.0,120050.0,1.29256098]
[1752805301054,0.011,120060.0,120050.0,1.2476863]
[1752805301254,0.011,120060.0,120050.0,1.66824866]
[1752805301454,0.1774424,120060.0,120050.0,1.6084863]
[1752805301752,0.011,120060.0,120050.0,1.6084863]
[1752805302353,0.1774424,120060.0,120050.0,1.6084863]
[1752805302654,0.011,120060.0,120050.0,1.6084863]
[1752805303348,0.1774424,120060.0,120050.0,1.2476863]
[1752805303757,0.1774424,120060.0,120050.0,1.35918684]
[1752805303956,0.1774424,120060.0,120050.0,1.71998726]
[1752805304255,0.1774424,120060.0,120050.0,1.71998727]
[1752805304448,0.1774424,120060.0,120050.0,1.67512056]
[1752805304648,0.1774424,120060.0,120050.0,1.31432056]
[1752805304855,0.1774424,120060.0,120050.0,1.3591872]
[1752805305055,0.1774424,120060.0,120050.0,1.31432056]
[1752805307457,0.1774424,120060.0,120050.0,1.67512056]
[1752805309453,0.1774424,120060.0,120050.0,1.72000473]
[1752805311158,0.1774424,120060.0,120050.0,1.35920473]
[1752805311357,0.1774424,120060.0,120050.0,1.03441463]
[1752805311559,0.1774424,120060.0,120050.0,1.35920473]
[1752805312258,0.1774424,120060.0,120050.0,1.72000473]
[1752805314153,0.1774424,120060.0,120050.0,1.65337047]
[1752805315162,0.1774424,120060.0,120050.0,1.32858037]
[1752805315558,0.1774424,120060.0,120050.0,1.65337047]
[1752805319765,0.1774424,120060.0,120050.0,1.66824866]
[1752805322368,0.1774424,120060.0,120050.0,1.6084863]
[1752805322863,0.011,120060.0,120050.0,1.6084863]
[1752805323068,0.60968,120060.0,120050.0,1.6084863]
[1752805323563,0.1774424,120060.0,120050.0,1.6084863]
[1752805323765,0.011,120060.0,120050.0,1.6084863]
[1752805323967,0.60964,120060.0,120050.0,1.6084863]
[1752805325564,0.7760824,120060.0,120050.0,1.6084863]
[1752805325764,0.7760024,120060.0,120050.0,1.2476863]
[1752805325960,0.7760024,120060.0,120050.0,0.9228962]
[1752805326168,0.7760024,120060.0,120050.0,1.2476863]
[1752805326671,0.1664272,120080.0,120070.0,0.2683585]
[1752805326871,0.46837771,120090.0,120080.0,0.4284546]
[1752805326872,0.69399261,120090.0,120080.0,0.4284546]
[1752805327165,0.85997745,120090.0,120080.0,0.45842301]
[1752805327369,1.45849745,120090.0,120080.0,0.50337668]
[1752805328170,1.45849745,120090.0,120080.0,1.00337668]
[1752805328671,1.46689085,120090.0,120080.0,1.00337668]
[1752805328864,1.46689085,120090.0,120080.0,1.00437668]
[1752805329068,1.47089085,120090.0,120080.0,1.00437668]
[1752805329368,1.47089085,120090.0,120080.0,0.95942301]
[1752805329569,1.80660095,120090.0,120080.0,0.79300841]
[1752805329768,2.05960095,120090.0,120080.0,0.58813]
[1752805329972,1.62771295,120090.0,120080.0,0.501]
[1752805330167,2.22611295,120090.0,120080.0,0.501]
[1752805330970,2.22611295,120090.0,120080.0,0.001]
[1752805331273,2.22611295,120090.0,120080.0,0.08813]
[1752805333169,1.97611295,120090.0,120080.0,0.08813]
[1752805333376,1.97611295,120090.0,120080.0,0.13759]
[1752805334476,1.97611295,120090.0,120080.0,0.08813]
[1752805334875,0.1950146,120080.0,120070.0,0.02996841]
[1752805335178,0.2150885,120070.0,120060.0,0.08713]
[1752805335377,0.9006786,120070.0,120060.0,0.08713]
[1752805335578,1.79106134,120070.0,120060.0,0.08713]
[1752805336177,0.1955023,120060.0,120050.0,0.18154367]
[1752805336478,1.02531576,120060.0,120050.0,0.18154367]
[1752805336976,1.04377295,120060.0,120050.0,0.18154367]
[1752805337169,1.04377295,120060.0,120050.0,0.20506367]
[1752805337379,1.04677295,120060.0,120050.0,0.16011]
[1752805338885,1.05177295,120060.0,120050.0,0.16111]
[1752805342182,0.70852566,120060.0,120050.0,0.16111]
[1752805342387,1.61171576,120060.0,120050.0,0.26304]
[1752805342583,1.28692566,120060.0,120050.0,0.26304]
[1752805342790,0.68892566,120060.0,120050.0,0.4294962]
[1752805342985,0.29906566,120060.0,120050.0,1.1150863]
[1752805343177,0.73058336,120060.0,120050.0,1.1150863]
[1752805343384,0.89702566,120060.0,120050.0,1.1150863]
[1752805343584,0.73058336,120060.0,120050.0,1.16003997]
[1752805343786,0.89702566,120060.0,120050.0,1.16003997]
[1752805344186,0.89702566,120060.0,120050.0,0.97444987]
[1752805344387,0.89702566,120060.0,120050.0,0.9294962]
[1752805345080,0.31666566,120060.0,120050.0,0.9294962]
[1752805345279,0.32850566,120060.0,120050.0,0.9294962]
[1752805345484,0.92642566,120060.0,120050.0,0.9294962]
[1752805346184,1.25121576,120060.0,120050.0,0.9294962]
[1752805346387,1.03369576,120060.0,120050.0,0.76304]
[1752805346888,1.30678566,120060.0,120050.0,0.26304]
[1752805347184,1.63157576,120060.0,120050.0,0.26304]
[1752805347378,1.30678566,120060.0,120050.0,0.26304]
[1752805347784,1.63157576,120060.0,120050.0,0.26304]
[1752805350089,1.63157576,120060.0,120050.0,0.4294962]
[1752805351990,0.68930566,120060.0,120050.0,0.4294962]
[1752805352190,1.28710566,120060.0,120050.0,0.4294962]
[1752805352888,0.68930566,120060.0,120050.0,0.7542863]
[1752805353088,1.28710566,120060.0,120050.0,0.4294962]
[1752805353484,1.28710566,120060.0,120050.0,0.9294962]
[1752805354293,1.28706566,120060.0,120050.0,0.9294962]
[1752805354494,1.28706566,120060.0,120050.0,0.95192598]
[1752805356393,1.28706566,120060.0,120050.0,0.78546978]
[1752805356592,1.28706566,120060.0,120050.0,0.95192598]
[1752805357794,1.61185576,120060.0,120050.0,0.95192598]
[1752805358690,1.28706566,120060.0,120050.0,0.95192598]
[1752805359893,1.28706566,120060.0,120050.0,0.9294962]
[1752805360490,1.28698566,120060.0,120050.0,0.9294962]
[1752805361290,0.29906566,120060.0,120050.0,0.9294962]
[1752805361495,0.7720823,120060.0,120050.0,1.66003997]
[1752805362095,0.7720823,120060.0,120050.0,1.29923997]
[1752805362296,0.7720823,120060.0,120050.0,1.66003997]
[1752805366200,0.7720823,120060.0,120050.0,1.29923997]
[1752805367395,0.1744423,120060.0,120050.0,1.29923997]
[1752805367701,0.7719623,120060.0,120050.0,1.66003997]
[1752805369002,0.7719623,120060.0,120050.0,1.33524987]
[1752805369205,0.7719623,120060.0,120050.0,1.66003997]
[1752805369402,0.1744423,120060.0,120050.0,1.66003997]
[1752805369703,0.7719623,120060.0,120050.0,1.66003997]
[1752805370002,0.7719623,120060.0,120050.0,1.6150863]
[1752805370899,0.7719623,120060.0,120050.0,1.2542863]
[1752805371100,0.1744423,120060.0,120050.0,1.66000256]
[1752805371403,0.1744423,120060.0,120050.0,1.29920258]
[1752805371703,0.7719223,120060.0,120050.0,1.29920258]
[1752805372203,0.1744423,120060.0,120050.0,1.29920258]
[1752805372598,0.1744423,120060.0,120050.0,1.2542863]
[1752805372795,0.1744423,120060.0,120050.0,1.29921647]
[1752805373201,0.7719223,120060.0,120050.0,1.29921647]
[1752805375209,0.7719223,120060.0,120050.0,1.2542863]
[1752805379811,0.7719223,120060.0,120050.0,1.31404866]
[1752805383612,0.7719223,120060.0,120050.0,0.98925856]
[1752805383916,0.8011923,120060.0,120050.0,0.98925856]
[1752805384113,1.25117773,120060.0,120050.0,0.98925856]
[1752805384617,0.65401773,120060.0,120050.0,0.98925856]
[1752805384817,1.25117773,120060.0,120050.0,0.98925856]
[1752805385212,0.65401773,120060.0,120050.0,0.98925856]
[1752805385416,1.25117773,120060.0,120050.0,0.98925856]
[1752805385618,0.92638763,120060.0,120050.0,0.98925856]
[1752805385820,0.92638763,120060.0,120050.0,0.9294962]
[1752805386008,0.92634763,120060.0,120050.0,0.9294962]
[1752805386318,1.25113773,120060.0,120050.0,0.9294962]
[1752805389420,0.92634763,120060.0,120050.0,0.9294962]
[1752805389623,0.92626763,120060.0,120050.0,0.9294962]
[1752805392222,0.32922763,120060.0,120050.0,0.9294962]
[1752805392421,0.32922763,120060.0,120050.0,1.2542863]
[1752805392720,0.92618763,120060.0,120050.0,1.2542863]
[1752805394021,0.92618763,120060.0,120050.0,0.9294962]
[1752805394418,0.92614763,120060.0,120050.0,0.9294962]
[1752805399828,0.32922763,120060.0,120050.0,0.97446013]
[1752805400029,0.92602763,120060.0,120050.0,1.00443608]
[1752805400428,1.25081773,120060.0,120050.0,1.00443608]
[1752805402834,0.92590763,120060.0,120050.0,1.66005023]
[1752805403029,0.92590763,120060.0,120050.0,1.29925023]
[1752805403637,0.92586763,120060.0,120050.0,1.29925023]
[1752805403834,0.92586763,120060.0,120050.0,1.32922643]
[1752805404037,0.92586763,120060.0,120050.0,1.29925023]
[1752805404338,0.92586763,120060.0,120050.0,1.66005023]
[1752805404728,0.92586763,120060.0,120050.0,1.6767147]
[1752805405539,0.92586763,120060.0,120050.0,1.3519246]
[1752805405739,0.92586763,120060.0,120050.0,1.6767147]
[1752805406038,0.89631763,120060.0,120050.0,1.6767147]
[1752805406244,0.89627763,120060.0,120050.0,1.6767147]
[1752805407441,0.89623763,120060.0,120050.0,1.3519246]
[1752805407738,0.89623763,120060.0,120050.0,1.6767147]
[1752805408841,0.29967763,120060.0,120050.0,1.6767147]
[1752805409139,0.89623763,120060.0,120050.0,1.6767147]
[1752805409835,0.89623763,120060.0,120050.0,1.69151313]
[1752805411042,0.92554763,120060.0,120050.0,1.33071313]
[1752805411443,0.92554763,120060.0,120050.0,1.00592303]
[1752805412442,0.32898763,120060.0,120050.0,1.00592303]
[1752805412644,0.92546763,120060.0,120050.0,1.00592303]
[1752805413043,1.25025773,120060.0,120050.0,1.00592303]
[1752805413546,0.92546763,120060.0,120050.0,1.00592303]
[1752805414445,0.92546763,120060.0,120050.0,0.94616067]
[1752805415546,0.65377773,120060.0,120050.0,0.94616067]
[1752805415746,1.63049773,120060.0,120050.0,0.94616067]
[1752805417746,1.03417773,120060.0,120050.0,0.94616067]
[1752805417943,1.63049773,120060.0,120050.0,0.94616067]
[1752805418345,1.03417773,120060.0,120050.0,0.94616067]
[1752805418746,1.63041773,120060.0,120050.0,0.94616067]
[1752805419242,1.30562763,120060.0,120050.0,0.94616067]
[1752805419443,1.63041773,120060.0,120050.0,0.94616067]
[1752805420548,1.30562763,120060.0,120050.0,0.94616067]
[1752805420748,0.92518763,120060.0,120050.0,0.94616067]
[1752805421046,1.28598763,120060.0,120050.0,0.94616067]
[1752805421346,0.68978763,120060.0,120050.0,0.94616067]
[1752805421547,0.92518763,120060.0,120050.0,0.94616067]
[1752805425239,0.94470763,120060.0,120050.0,0.94616067]
[1752805425444,1.63025773,120060.0,120050.0,0.82466522]
[1752805426050,1.63025773,120060.0,120050.0,0.99112142]
[1752805426449,1.63025773,120060.0,120050.0,0.82466522]
[1752805426650,1.30546763,120060.0,120050.0,0.99112142]
[1752805426950,1.63025773,120060.0,120050.0,0.99112142]
[1752805427749,1.63017773,120060.0,120050.0,0.99112142]
[1752805427950,1.26937773,120060.0,120050.0,0.99112142]
[1752805428447,0.94458763,120060.0,120050.0,0.99112142]
[1752805428649,1.26937773,120060.0,120050.0,0.99112142]
[1752805429352,0.94458763,120060.0,120050.0,0.99112142]
[1752805429551,1.26933773,120060.0,120050.0,0.99112142]
[1752805429752,0.67337773,120060.0,120050.0,0.99112142]
[1752805429949,0.92494763,120060.0,120050.0,0.99112142]
[1752805430150,0.32898763,120060.0,120050.0,0.99111915]
[1752805430352,0.92490763,120060.0,120050.0,0.94616067]
[1752805430750,0.32898763,120060.0,120050.0,0.94616067]
[1752805430951,0.89559763,120060.0,120050.0,1.27095077]
[1752805432250,0.29967763,120060.0,120050.0,1.63175077]
[1752805432556,0.89559763,120060.0,120050.0,1.36672303]
[1752805432756,0.89559763,120060.0,120050.0,1.69151313]
[1752805434055,0.72915533,120060.0,120050.0,1.69151313]
[1752805435055,0.72915533,120060.0,120050.0,1.36672303]
[1752805435355,0.89547763,120060.0,120050.0,1.69151313]
[1752805435756,0.89547763,120060.0,120050.0,1.33071313]
[1752805436455,0.91307763,120060.0,120050.0,1.39682181]
[1752805437650,0.92492763,120060.0,120050.0,1.39682181]
[1752805438550,0.75848533,120060.0,120050.0,1.75762181]
[1752805438755,0.75840533,120060.0,120050.0,1.43283171]
[1752805438955,0.72895533,120060.0,120050.0,1.75762181]
[1752805439856,0.72895533,120060.0,120050.0,1.74279061]
[1752805440953,0.72895533,120060.0,120050.0,1.41800051]
[1752805441155,0.72895533,120060.0,120050.0,1.74279061]
[1752805442153,0.13323533,120060.0,120050.0,1.74279061]
[1752805442356,0.72891533,120060.0,120050.0,1.74279061]
[1752805443851,0.5552046,120090.0,120080.0,0.1892747]
[1752805444055,0.5846546,120090.0,120080.0,0.4198147]
[1752805444356,0.18313272,120090.0,120080.0,0.7446048]
[1752805444556,0.32993352,120090.0,120080.0,0.767057]
[1752805444755,0.92757352,120090.0,120080.0,0.767057]
[1752805445159,0.93657352,120090.0,120080.0,0.768057]
[1752805445755,0.93157352,120090.0,120080.0,0.768057]
[1752805446149,0.93657352,120090.0,120080.0,0.769057]
[1752805446354,0.13468932,120090.0,120080.0,1.0938471]
[1752805446552,0.13468932,120090.0,120080.0,1.4546471]
[1752805446754,0.13468932,120090.0,120080.0,0.81256055]
[1752805447056,0.13168932,120090.0,120080.0,1.46114075]
[1752805447457,0.73968932,120090.0,120080.0,1.46114075]
[1752805447658,0.73768932,120090.0,120080.0,1.48357333]
[1752805447859,0.73768932,120090.0,120080.0,1.48557333]
[1752805448154,0.00838092,120110.0,120100.0,0.1663869]
[1752805448360,0.0176,120110.0,120100.0,0.76174372]
[1752805448559,0.92967385,120110.0,120100.0,0.43695362]
[1752805448858,0.92995385,120110.0,120100.0,0.76174372]
[1752805449058,0.15466075,120110.0,120100.0,0.43695362]
[1752805449253,0.15466075,120110.0,120100.0,0.79775362]
[1752805449559,0.15966075,120110.0,120100.0,1.12254372]
[1752805449759,0.77278075,120110.0,120100.0,1.12254372]
[1752805449956,0.77278075,120110.0,120100.0,1.14497503]
[1752805450352,0.77078075,120110.0,120100.0,1.14497503]
[1752805450553,0.77178075,120110.0,120100.0,1.14497503]
[1752805450755,0.77178075,120110.0,120100.0,0.82018493]
[1752805451153,0.77178075,120110.0,120100.0,1.14497503]
[1752805451355,0.77178075,120110.0,120100.0,0.79775362]
[1752805451555,0.76878075,120110.0,120100.0,0.79875362]
[1752805451762,0.76878075,120110.0,120100.0,1.12354372]
[1752805451960,0.76878075,120110.0,120100.0,1.29875362]
[1752805452162,0.76878075,120110.0,120100.0,1.62354372]
[1752805453164,0.76878075,120110.0,120100.0,1.29875362]
[1752805453365,0.76878075,120110.0,120100.0,1.62354372]
[1752805453859,0.14381075,120110.0,120100.0,1.62354372]
[1752805454064,0.00825151,120120.0,120110.0,0.4197731]
[1752805454263,0.5565968,120130.0,120120.0,0.3968993]
[1752805454458,1.00345,120130.0,120120.0,0.7445494]
[1752805454663,0.1619482,120130.0,120120.0,1.1053494]
[1752805454963,0.7753482,120130.0,120120.0,1.1053494]
[1752805455156,0.7753482,120130.0,120120.0,0.7445494]
[1752805455459,0.9416936,120130.0,120120.0,0.4197593]
[1752805455666,0.9416136,120130.0,120120.0,0.4197593]
[1752805455860,0.9612136,120130.0,120120.0,0.4197593]
[1752805456258,0.9416136,120130.0,120120.0,0.9197593]
[1752805456856,0.3282936,120130.0,120120.0,0.9197593]
[1752805457062,0.9423736,120130.0,120120.0,0.9197593]
[1752805458558,0.9443736,120130.0,120120.0,0.9197593]
[1752805458758,0.9443736,120130.0,120120.0,0.7534]
[1752805459064,1.3256936,120130.0,120120.0,0.9197593]
[1752805459269,1.0364837,120130.0,120120.0,0.6548]
[1752805459466,1.6508837,120130.0,120120.0,0.58281]
[1752805459664,1.6508837,120130.0,120120.0,0.08281]
[1752805460364,1.6508837,120130.0,120110.0,0.06568612]
[1752805460365,0.2154093,120120.0,120110.0,0.31486922]
[1752805460565,0.9009994,120120.0,120110.0,0.33772922]
[1752805460768,1.02660835,120120.0,120110.0,0.36010069]
[1752805460965,1.02660835,120120.0,120110.0,0.33772922]
[1752805461169,1.02660835,120120.0,120110.0,0.86010069]
[1752805461468,0.70181825,120120.0,120110.0,0.83772922]
[1752805461668,1.02660835,120120.0,120110.0,0.86010069]
[1752805461971,1.02660835,120120.0,120110.0,0.83772922]
[1752805462171,0.70181825,120120.0,120110.0,0.83772922]
[1752805462370,1.02660835,120120.0,120110.0,0.83772922]
[1752805464065,1.02660835,120120.0,120110.0,0.92632922]
[1752805466874,1.63932835,120120.0,120110.0,0.92632922]
[1752805467377,1.31453825,120120.0,120110.0,0.92632922]
[1752805467672,0.95309825,120120.0,120110.0,0.93813922]
[1752805467874,1.63868835,120120.0,120110.0,0.93813922]
[1752805468576,1.63868835,120120.0,120110.0,0.77176612]
[1752805468771,1.63836835,120120.0,120110.0,0.64849612]
[1752805468971,1.35139845,120120.0,120110.0,0.50795612]
[1752805469172,1.96311845,120120.0,120110.0,0.50795612]
[1752805469377,1.96307845,120120.0,120110.0,0.50795612]
[1752805469671,1.51790245,120120.0,120110.0,0.49695612]
[1752805469873,2.37966245,120120.0,120110.0,0.49695612]
[1752805470068,0.1663732,120110.0,120100.0,0.10890672]
[1752805470273,0.8519633,120110.0,120100.0,0.10890672]
[1752805470474,0.97744038,120110.0,120100.0,0.15570672]
[1752805471573,2.12888038,120110.0,120100.0,0.15570672]
[1752805471774,1.80509028,120110.0,120100.0,0.15570672]
[1752805471976,2.12988038,120110.0,120100.0,0.15570672]
[1752805472377,2.12988038,120110.0,120100.0,0.10890672]
[1752805472577,2.13188038,120110.0,120100.0,0.10890672]
[1752805473077,2.13188038,120110.0,120100.0,0.15570672]
[1752805473272,1.80709028,120110.0,120100.0,0.15570672]
[1752805473476,2.13188038,120110.0,120100.0,0.15570672]
[1752805473676,2.74284038,120110.0,120100.0,0.15570672]
[1752805474080,2.41805028,120110.0,120100.0,0.15570672]
[1752805474379,2.41805028,120110.0,120100.0,0.17808038]
[1752805474575,2.74284038,120110.0,120100.0,0.20239038]
[1752805475678,2.74264038,120110.0,120100.0,0.23062038]
[1752805476077,2.41785028,120110.0,120100.0,0.23062038]
[1752805476280,2.74264038,120110.0,120100.0,0.23062038]
[1752805476980,2.41785028,120110.0,120100.0,0.23062038]
[1752805477181,2.74264038,120110.0,120100.0,0.23062038]
[1752805477982,2.13188038,120110.0,120100.0,0.23062038]
[1752805478482,2.74172038,120110.0,120100.0,0.23062038]
[1752805478683,2.74172038,120110.0,120100.0,0.21867038]
[1752805479184,2.74172038,120110.0,120100.0,0.20150366]
[1752805479885,2.74172038,120110.0,120100.0,0.20895863]
[1752805481092,1.80709028,120110.0,120100.0,0.20895863]
[1752805481292,2.41685028,120110.0,120100.0,0.20895863]
[1752805481593,2.74164038,120110.0,120100.0,0.20895863]
[1752805481793,2.74164038,120110.0,120100.0,0.23139162]
[1752805481992,2.13188038,120110.0,120100.0,0.24333162]
[1752805482294,2.74132038,120110.0,120100.0,0.24333162]
[1752805482494,2.13188038,120110.0,120100.0,0.24333162]
[1752805482686,2.74120038,120110.0,120100.0,0.24333162]
[1752805482885,1.80709028,120110.0,120100.0,0.48769563]
[1752805483192,2.41625028,120110.0,120100.0,0.53243858]
[1752805483994,2.41601028,120110.0,120100.0,1.03243858]
[1752805484194,2.41501028,120110.0,120100.0,1.03743858]
[1752805484794,2.41501028,120110.0,120100.0,1.03843858]
[1752805485294,2.41401028,120110.0,120100.0,1.03843858]
[1752805485494,2.41401028,120110.0,120100.0,1.04243858]
[1752805486494,0.12647708,120110.0,120100.0,1.33740005]
[1752805486792,1.6786913,120150.0,120140.0,0.4176416]
[1752805487097,2.41116561,120150.0,120140.0,0.4475448]
[1752805487297,2.48274561,120150.0,120140.0,0.4475448]
[1752805487697,1.91194288,120150.0,120140.0,0.4475448]
[1752805487997,2.51966288,120150.0,120140.0,0.4475448]
[1752805488394,2.49061288,120150.0,120140.0,0.96995029]
[1752805488801,2.49029288,120150.0,120140.0,0.96995029]
[1752805489002,2.46641288,120150.0,120140.0,0.96995029]
[1752805489198,2.41869938,120150.0,120140.0,0.96995029]
[1752805489503,2.41853938,120150.0,120140.0,0.96995029]
[1752805490001,2.41853938,120150.0,120140.0,0.9176416]
[1752805490403,2.46623938,120150.0,120140.0,0.9176416]
[1752805490601,2.49011938,120150.0,120140.0,0.9176416]
[1752805490791,2.25222158,120150.0,120140.0,0.9176416]
[1752805490993,0.6595055,120170.0,120160.0,0.4176139]
[1752805491195,0.6595055,120170.0,120160.0,0.25131]
[1752805491196,1.6915656,120170.0,120160.0,0.25131]
[1752805491401,1.81739817,120170.0,120160.0,0.25131]
[1752805491602,1.81731817,120170.0,120160.0,0.09677883]
[1752805491801,1.76750441,120170.0,120160.0,0.01698883]
[1752805492004,1.77250441,120170.0,120160.0,0.01698883]
[1752805492203,2.05639431,120170.0,120160.0,0.01698883]
[1752805493205,2.06488051,120170.0,120160.0,0.01698883]
[1752805495007,0.3579439,120160.0,120150.0,0.07646]
[1752805495208,1.043534,120160.0,120150.0,0.07646]
[1752805495506,1.77484524,120160.0,120150.0,0.07646]
[1752805496306,1.77584524,120160.0,120150.0,0.07646]
[1752805497407,1.77984524,120160.0,120150.0,0.07646]
[1752805498804,1.77984524,120160.0,120150.0,0.10468]
[1752805500410,1.77852524,120160.0,120150.0,0.10468]
[1752805501111,1.77852524,120160.0,120150.0,0.15429]
[1752805501411,1.17396524,120160.0,120150.0,0.15429]
[1752805501710,1.77824524,120160.0,120150.0,0.15429]
[1752805502308,1.17396524,120160.0,120150.0,0.15429]
[1752805502508,0.3579578,120150.0,120140.0,0.09886549]
[1752805502708,0.3579716,120140.0,120130.0,0.14886]
[1752805503007,1.77239853,120140.0,120130.0,0.07646]
[1752805503213,0.3766834,120130.0,120120.0,0.14847549]
[1752805503507,2.8172335,120130.0,120120.0,0.12607]
[1752805503714,2.94134976,120130.0,120120.0,0.12607]
[1752805504113,2.94134976,120130.0,120120.0,0.14886]
[1752805505713,2.61655966,120130.0,120120.0,0.14886]
[1752805506212,2.94234976,120130.0,120120.0,0.15786]
[1752805506406,2.33858976,120130.0,120120.0,0.15786]
[1752805506604,2.01379966,120130.0,120120.0,0.3242193]
[1752805506808,2.61667966,120130.0,120120.0,0.4176093]
[1752805507008,2.94146976,120130.0,120120.0,0.4176093]
[1752805507410,2.33858976,120130.0,120120.0,0.4176093]
[1752805507912,2.94238976,120130.0,120120.0,0.4276093]
[1752805508412,2.33958976,120130.0,120120.0,0.26125]
[1752805508713,2.01479966,120130.0,120120.0,0.26125]
[1752805508912,2.94262976,120130.0,120120.0,0.4276093]
[1752805509713,2.94262976,120130.0,120120.0,0.26125]
[1752805510008,2.01479966,120130.0,120120.0,0.4276093]
[1752805510207,1.98614966,120130.0,120120.0,0.77480489]
[1752805510409,2.51803966,120130.0,120120.0,0.80470809]
[1752805510613,1.91395966,120130.0,120120.0,0.47991799]
[1752805510912,2.56646966,120130.0,120120.0,0.49185799]
[1752805511304,2.56654966,120130.0,120120.0,0.99185799]
[1752805511611,2.59106966,120130.0,120120.0,0.99185799]
[1752805512314,2.59106966,120130.0,120120.0,0.9694525]
[1752805513215,2.50018176,120130.0,120120.0,0.9694525]
[1752805513415,1.89526176,120130.0,120120.0,0.9694525]
[1752805513616,1.92655626,120130.0,120120.0,1.2942426]
[1752805513815,2.09290166,120130.0,120120.0,1.33909741]
[1752805514117,2.09290166,120130.0,120120.0,1.2942426]
[1752805514518,2.09254166,120130.0,120120.0,1.33909741]
[1752805515213,2.09254166,120130.0,120120.0,1.01430731]
[1752805515421,2.09246166,120130.0,120120.0,1.30919421]
[1752805515607,2.09238166,120130.0,120120.0,1.30919421]
[1752805515807,1.44366166,120130.0,120120.0,1.30919421]
[1752805516117,0.29246166,120130.0,120120.0,1.66999421]
[1752805516320,0.89602166,120130.0,120120.0,1.66999421]
[1752805516518,0.89602166,120130.0,120120.0,1.6251394]
[1752805516719,0.89602166,120130.0,120120.0,1.3003493]
[1752805517221,0.89602166,120130.0,120120.0,1.6251394]
[1752805517521,0.29246166,120130.0,120120.0,1.66994911]
[1752805517721,0.89554166,120130.0,120120.0,1.6251394]
[1752805518416,0.89546166,120130.0,120120.0,1.6251394]
[1752805518822,0.29246166,120130.0,120120.0,1.6251394]
[1752805519121,0.89522166,120130.0,120120.0,1.68494581]
[1752805519722,0.89522166,120130.0,120120.0,1.6251394]
[1752805520418,0.12611626,120130.0,120120.0,1.6251394]
[1752805520622,0.002,120130.0,120120.0,1.9499295]
[1752805520817,0.002,120130.0,120120.0,2.42623191]
[1752805521015,0.60416,120130.0,120120.0,2.42623191]
[1752805521220,0.002,120130.0,120120.0,2.42623191]
[1752805521423,0.27580691,120160.0,120150.0,0.4085678]
[1752805521624,0.34799691,120160.0,120150.0,0.75576041]
[1752805521922,1.43502809,120160.0,120150.0,0.43097031]
[1752805522323,0.47230809,120160.0,120150.0,0.43097031]
[1752805522520,0.47230809,120160.0,120150.0,0.43843781]
[1752805522915,1.07386809,120160.0,120150.0,0.93843781]
[1752805523322,1.07386809,120160.0,120150.0,0.98324283]
[1752805523522,1.41014809,120160.0,120150.0,0.98324283]
[1752805523728,1.18328819,120160.0,120150.0,0.93843781]
[1752805523917,1.18628819,120160.0,120150.0,0.93843781]
[1752805524116,1.46357809,120160.0,120150.0,0.93843781]
[1752805524420,0.83504809,120160.0,120150.0,0.93843781]
[1752805524726,0.14600489,120160.0,120150.0,1.30803293]
[1752805525028,0.003,120160.0,120150.0,1.63896292]
[1752805525223,0.6048,120160.0,120150.0,1.63896292]
[1752805525430,0.6048,120160.0,120150.0,1.31417282]
[1752805525723,0.6048,120160.0,120150.0,1.63896292]
[1752805525920,0.003,120160.0,120150.0,1.63896292]
[1752805526227,0.60476,120160.0,120150.0,1.63896292]
[1752805526417,0.003,120160.0,120150.0,1.63896292]
[1752805526724,0.22621006,120180.0,120170.0,0.2629501]
[1752805526919,0.62812873,120180.0,120170.0,0.76629411]
[1752805527117,0.91909858,120180.0,120170.0,0.76629411]
[1752805527519,0.31765858,120180.0,120170.0,1.12709411]
[1752805527716,0.91897858,120180.0,120170.0,1.12709411]
[1752805528321,0.95825858,120180.0,120170.0,1.12709411]
[1752805528517,0.97046858,120180.0,120170.0,1.12709411]
[1752805528719,0.97046858,120180.0,120170.0,0.44150391]
[1752805528720,0.48185858,120180.0,120170.0,0.44150391]
[1752805528915,1.43386868,120180.0,120170.0,0.94150391]
[1752805529116,1.10907858,120180.0,120170.0,0.94150391]
[1752805529529,1.08301858,120180.0,120170.0,0.97134912]
[1752805529923,1.08301858,120180.0,120170.0,0.94150391]
[1752805530628,0.48185858,120180.0,120170.0,0.94150391]
[1752805530925,1.08273858,120180.0,120170.0,0.94150391]
[1752805531525,1.08265858,120180.0,120170.0,0.94150391]
[1752805532527,1.08257858,120180.0,120170.0,0.94150391]
[1752805532930,0.47985858,120180.0,120170.0,1.26629401]
[1752805533229,1.08121858,120180.0,120170.0,1.26629401]
[1752805533625,1.07521858,120180.0,120170.0,1.26629401]
[1752805533821,0.82470868,120180.0,120170.0,0.80505912]
[1752805534124,1.18550868,120180.0,120170.0,0.82052391]
[1752805534528,1.18550868,120180.0,120170.0,0.81007]
[1752805534730,1.79146868,120180.0,120170.0,0.83439]
[1752805534925,1.79146868,120180.0,120170.0,0.93205]
[1752805535826,1.18550868,120180.0,120170.0,0.93205]
[1752805536034,1.10571858,120180.0,120170.0,0.93205]
[1752805536234,1.07965858,120180.0,120170.0,0.93205]
[1752805536424,1.46851858,120180.0,120170.0,0.93105]
[1752805536830,1.79330868,120180.0,120170.0,0.76476]
[1752805537332,0.86071858,120180.0,120170.0,0.9320501]
[1752805537533,1.46739858,120180.0,120170.0,0.9320501]
[1752805537731,1.18650868,120180.0,120170.0,0.9320501]
[1752805537932,1.10675858,120180.0,120170.0,0.9320501]
[1752805539632,0.50091858,120180.0,120170.0,0.9320501]
[1752805539931,0.38565432,120180.0,120170.0,1.2568402]